Cogmind - Beta 15 @@@ ROGUE MODE // 2025.06.15 @ 10:16:34 Player: Oldman Pu Result: Destroyed by G-34 Mercenary with Small Laser Performance ------------- Evolutions (0) 0 Regions Visited (1) 200 Robots Destroyed (14) 70 Value Destroyed (228) 228 Prototype IDs (4) 80 Alien Tech Used (0) 0 Bonus (0) 0 TOTAL SCORE: 578 Bonus ------- None Cogmind --------- Core Integrity 0/250 Matter 237/300 Energy 159/160 System Corruption 0% Temperature Cool (6) Movement Walking (190) Ox1 Location -10/Materials Parts ------- > --- POWER (1) -------- Light Nuclear Core > --- PROPULSION (2) --- Aluminum Leg > --- UTILITY (2) ------ Heat Sink Small Storage Unit > --- WEAPON (2) ------- Assault Rifle > --- INVENTORY (8) ---- Light Ion Engine Medium Matter Pod (0) Medium Laser Small Laser Light Assault Rifle Light Assault Rifle Peak State ------------ > --- POWER ------------ Light Nuclear Core > --- PROPULSION ------- Aluminum Leg > --- UTILITY ---------- Heat Sink Small Storage Unit > --- WEAPON ----------- Assault Rifle Light Assault Rifle > --- INVENTORY -------- Light Ion Engine Medium Matter Pod Medium Laser Small Laser Light Assault Rifle Light Assault Rifle [Rating: 8] Favorites ----------- Power Ion Engine Engine Ion Engine Power Core Light Nuclear Core Propulsion Compact Wheel Leg Aluminum Leg Wheel Compact Wheel Utility Small Storage Unit Device Heat Sink Storage Small Storage Unit Weapon Light Assault Rifle Energy Gun Medium Laser Ballistic Gun Light Assault Rifle Build | -11 -10 ------- Run | Yrd Mat Slots Evolved . | . . Power . | . . Propulsion . | . . Utility . | . . Weapon . | . . Parts Attached 16 | 6 10 Power 3 | 1 2 Engine 2 | 1 1 Core 1 | . 1 Reactor . | . . Propulsion 4 | 2 2 Treads . | . . Leg 1 | . 1 Wheel 3 | 2 1 Hover . | . . Flight . | . . Utility 3 | 1 2 Device 1 | . 1 Storage 2 | 1 1 Processor . | . . Hackware . | . . Protection . | . . Artifact . | . . Weapon 6 | 2 4 Energy Gun 2 | 2 . Energy Cannon . | . . Ballistic Gun 4 | . 4 Ballistic Cannon . | . . Launcher . | . . Special Weapon . | . . Impact Weapon . | . . Slashing Weapon . | . . Piercing Weapon . | . . Special Melee Weapon . | . . Unidentified Prototypes . | . . Parts Lost 4 | . 4 Power . | . . Propulsion 3 | . 3 Utility . | . . Weapon 1 | . 1 Highest Loss Streak 2 | . 2 To Critical Strikes . | . . Average Backups 2 | . 3 Power . | . . Propulsion . | . . Utility . | . . Weapon 1 | . 2 Tool/Special . | . . Unused Backups . | . . Power . | . . Propulsion . | . . Utility . | . . Weapon . | . . Tool/Special . | . . Average Slot Usage (%) 92 | . 92 Engine 11 | . 11 Core 2 | . 2 Leg 1 | . 1 Wheel 21 | . 21 Device 7 | . 7 Storage 19 | . 19 Energy Gun 12 | . 12 Ballistic Gun 15 | . 15 Peak Build Rating 8 | 6 8 Average Rating 6 | 4 6 On Entrance 3 | . 6 Naked Turns . | . . Heaviest Build 15 | 13 15 Greatest Support 32 | 32 32 Greatest Overweight (x) 4 | 3 4 Average Overweight (x) . | . . Largest Inventory Capacity 8 | 8 8 Average Capacity 7 | 7 8 Most Carried 6 | . 6 Average Carried 2 | . 3 Final Capacity 8 | 8 8 Final Carried 6 | . 6 Class Distribution -------------------- 100% | Mutant Dominant Class ---------------- Mutant | -10/Materials Resources | -11 -10 ----------- Run | Yrd Mat Matter Collected 509 | 188 321 Remotely . | . . Salvage Created 351 | . 351 Parts 28 | . 28 Haulers Intercepted . | . . Recyclers Shooed 1 | . 1 Parts Field Recycled . | . . Retrieved Matter . | . . Parts Self-Destructed . | . . Prevented . | . . Kills | -11 -10 ------- Run | Yrd Mat Combat Hostiles Destroyed 10 | . 10 Guns 10 | . 10 Classes Destroyed 4 | . 4 Worker 3 | . 3 Watcher 1 | . 1 Swarmer 6 | . 6 Grunt 4 | . 4 Best Kill Streak 5 | . 5 Combat Bots Only 3 | . 3 Max Kills in Single Turn 1 | . 1 Gunslinging . | . . Exploded . | . . Melee . | . . Uniques/NPCs Destroyed . | . . Combat | -11 -10 -------- Run | Yrd Mat Hostile Shots Fired 84 | . 84 Missed 19 | . 19 Hits 65 | . 65 Projectile 65 | . 65 Critical Strikes 1 | . 1 Damage Taken 669 | . 669 Core 253 | . 253 Absorbed by Shields . | . . Core Remaining (%) 100 | 100 . Volleys Fired 61 | . 61 Largest 2 | . 2 Hottest 90 | . 90 Shots Fired 113 | . 113 Gun 113 | . 113 Cannon . | . . Launcher . | . . Special . | . . Kinetic 88 | . 88 Thermal 25 | . 25 Explosive . | . . Electromagnetic . | . . Robot Hit Streak 16 | . 16 Robot Miss Streak 6 | . 6 Penetration Max . | . . Secondary Targets 1 | . 1 Max Gunslinging Chain 1 | . 1 Shots Hit Robots 60 | . 60 Core Hits 23 | . 23 Critical Kills . | . . Critical Parts Destroyed . | . . Critical Strikes 1 | . 1 Burn 1 | . 1 Melee Attacks . | . . Impact . | . . Slashing . | . . Piercing . | . . Sneak Attacks . | . . Combat Hostiles . | . . Follow-up Attacks . | . . Damage Inflicted 634 | . 634 Guns 634 | . 634 Cannons . | . . Explosions . | . . Melee . | . . Ramming . | . . Kinetic 547 | . 547 Thermal 87 | . 87 Explosive . | . . Electromagnetic . | . . Impact . | . . Slashing . | . . Piercing . | . . Highest Corruption . | . . Average Corruption . | . . Corruption Purged . | . . Corruption Blocked . | . . Overload Shots . | . . Overflow Damage . | . . Projectiles . | . . Explosions . | . . Melee . | . . Knockbacks . | . . Impact . | . . Kinetic . | . . Secondary . | . . Self-Inflicted Damage . | . . Shots . | . . Rammed . | . . Targets Rammed . | . . Kicked . | . . Crushed . | . . Highest Temperature 90 | . 90 Average Temperature 33 | . 33 Received Heat Transfer 234 | . 234 Siege Activations . | . . Martial Activations . | . . Shielding Activations . | . . Robots Disrupted . | . . Combat Hostiles . | . . Robots Corrupted . | . . Combat Hostiles . | . . Parts Fried . | . . Impact Corruptions . | . . Robots Melted . | . . Combat Hostiles . | . . Parts Melted . | . . Heat Transferred 321 | . 321 Parts Sabotaged . | . . Parts Stolen . | . . Parts Stripped . | . . Power Chain Reactions . | . . Alert | -11 -10 ------- Run | Yrd Mat Maximum Alert Level . | . . Low Security (%) 100 | 100 100 Level 1 . | . . Level 2 . | . . Level 3 . | . . Level 4 . | . . Level 5 . | . . High Security . | . . Max Security . | . . Peak Influence 123 | . 123 Initial . | . . Average 52 | . 55 Influence Increases 322 | . 322 Destroy 0b10 Robot/C 200 | . 200 Destroy 0b10 Robot/NC 20 | . 20 Destroy Leader 32 | . 32 Successful Hack 24 | . 24 Destroy Structure 1 | . 1 Lose Combat Pursuer 45 | . 45 Influence Decreases 228 | . 228 Time Decay 188 | . 188 Lost Part 40 | . 40 Squads Dispatched 2 | . 2 Investigation . | . . Extermination . | . . Reinforcement 2 | . 2 Assault . | . . Garrison . | . . Intercept . | . . Searches Triggered . | . . Construction Impeded . | . . Haulers Reinforced . | . . Active Scanning Responses . | . . Cargo Convoy Interrupts . | . . Stealth | -11 -10 --------- Run | Yrd Mat Distress Signals 1 | . 1 Communications Jammed . | . . Distress Signals . | . . Times Spotted 22 | . 22 Peak Tracking Total 6 | . 6 Tactical Retreats 2 | . 2 Traps | -11 -10 ------- Run | Yrd Mat Traps Triggered 3 | . 3 Indirectly . | . . Trap Hack Attempts . | . . Triggered . | . . Disarmed . | . . Reprogrammed . | . . Reused . | . . Traps Extracted . | . . Installed . | . . Triggered . | . . Machines | -11 -10 ---------- Run | Yrd Mat Machines Disabled . | . . Max in Single Turn . | . . Machines Repaired . | . . Machines Dismantled . | . . Machines Sabotaged . | . . Overloaded Fab Kills . | . . Hacking | -11 -10 --------- Run | Yrd Mat Machines Accessed 5 | . 5 Terminals 5 | . 5 Fabricators . | . . Repair Stations . | . . Recycling Units . | . . Scanalyzers . | . . Garrison Access . | . . Total Hacks 21 | . 21 Successful 9 | . 9 Failed 12 | . 12 Catastrophic 2 | . 2 Database Lockouts . | . . Manual . | . . Terminals 21 | . 21 Fabricators . | . . Repair Stations . | . . Recycling Units . | . . Scanalyzers . | . . Garrison Access . | . . Terminal Hacks 9 | . 9 Record 2 | . 2 Prototype ID Bank 3 | . 3 Branch Access Points 1 | . 1 Locate Traps 2 | . 2 Patrol Status 1 | . 1 Fabricator Hacks . | . . Repair Station Hacks . | . . Recycling Unit Hacks . | . . Scanalyzer . | . . Garrison Access Hacks . | . . Unauthorized Hacks . | . . Terminals . | . . Fabricators . | . . Repair Stations . | . . Recycling Units . | . . Scanalyzers . | . . Garrison Access . | . . Data Cores Recovered . | . . Used . | . . Hacking Detections 5 | . 5 Full Trace Events . | . . Feedback Events . | . . Feedback Blocked . | . . Robot Schematics Acquired . | . . Robots Built . | . . Authchips . | . . Time . | . . Total Robot Build Rating . | . . Part Schematics Acquired . | . . Parts Built . | . . Authchips . | . . Time . | . . Total Part Build Rating . | . . Parts Repaired . | . . Time . | . . Parts Recycled . | . . Recycled Matter . | . . Retrieved Matter . | . . Retrieved Components . | . . Parts Scanalyzed . | . . Part Schematics Acquired . | . . Parts Damaged . | . . Bothacking | -11 -10 ------------ Run | Yrd Mat Used RIF Installer . | . . Robots Hacked . | . . Non-combat . | . . Combat . | . . Robot Hacks Applied . | . . Relay Couplers Released . | . . Fabnet Peak Effective % . | . . Robots Rewired . | . . Allies Hacked . | . . Hacks Repelled . | . . Allies | -11 -10 -------- Run | Yrd Mat Total Allies . | . . Largest Group . | . . Highest-Rated Group . | . . Highest-Rated Ally . | . . Total Orders . | . . Ally Attacks . | . . Total Damage . | . . Kills . | . . Allies Corrupted . | . . Allies Melted . | . . Intel | -11 -10 ------- Run | Yrd Mat Active Infowar (turns) . | . . Robot Analysis Total . | . . Derelict Logs Recovered . | . . Drone Launches . | . . Drone Recoveries . | . . Exploration | -11 -10 ------------- Run | Yrd Mat Turns Passed 571 | 37 534 Spaces Moved 297 | 26 271 Core 28 | 11 17 Treads . | . . Legs . | . . Wheels 269 | 15 254 Hover . | . . Flight . | . . Fastest Speed 50 | 50 90 Average Speed 108 | 111 108 Slowest Speed 250 | 200 250 Overloaded Moves . | . . Propulsion Burnouts . | . . Robots Hopped . | . . Potential Cave-ins . | . . Cave-ins Triggered . | . . Exploration Rate (%) 24 | 3 46 Regions Visited 1 Branch Regions . Pre-discovered Areas . | . . Known Exits Taken . | . . Unknown Exits Taken 1 | 1 . Scrap Searched . | . . Spaces Dug . | . . Terrain Destroyed . | . . Melee . | . . Projectile . | . . AOE . | . . Terrain Rammed . | . . Walls Destroyed . | . . Machines Disabled . | . . Actions | -11 -10 --------- Run | Yrd Mat Total 433 | 31 402 Wait 49 | . 49 Move 296 | 25 271 Hop . | . . Pick Up 2 | . 2 Fast Attach 15 | 6 9 Attach 1 | . 1 Detach 1 | . 1 Swap 7 | . 7 Drop 1 | . 1 Fire 61 | . 61 Melee . | . . Ram . | . . Kick . | . . Crush . | . . Escape Stasis . | . . Rewire . | . . Trap . | . . Miscellaneous . | . . Route ------- -11/Scrapyard -10/Materials (discovered 2 exits: [*Mat] / Min) History --------- Turn | Location | Event 24 | -11/Scrapyard | Discovered new exit (range 14) 38 | -11/Scrapyard | Entered Materials 45 | -10/Materials | Identified exit to Mines 256 | -10/Materials | Discovered new exit (range 10) 317 | -10/Materials | Build established: Mutant 406 | -10/Materials | Core integrity fell below 50% 466 | -10/Materials | Core integrity fell below 20% 572 | -10/Materials | Destroyed by G-34 Mercenary with Small Laser Last Messages --------------- 00492_ R-06 Scavenger collects Sml. Laser. 00493_ Acquired 42 matter. 00495_ R-06 Scavenger collects Ion Engine. 00495_ K-01 Serf collects debris. 00498_ K-01 Serf cleans the Terminal. 00499_ K-01 Serf collects debris. 00504_ K-01 Serf destroyed. 00505_ K-01 Serf collects debris. 00507_ W-16 Scout destroyed. 00508_ K-01 Serf collects debris. 00512_ Acquired Aluminum Leg. 00519_ Acquired 11 matter. 00530_ R-06 Scavenger collects Lgt. Ion Engine. 00542_ K-01 Serf cleans the Terminal. 00551_ K-01 Serf collects debris. 00555_ K-01 Serf destroyed. 00558_ K-01 Serf cleans the Terminal. 00561_ Acquired 13 matter. 00562_ K-01 Serf cleans the Terminal. 00570_ Lgt. Assault Rifle destroyed. Map ----- +----------------------------------------------------+ | ?????????????????????????????????????????????????? | | ?????????????????????????????????????????????????? | | ?????????????????????????????????????????????????? | | ?????????????????????????????????????????????????? | | ?????????????????????????????????????????????????? | | ?????????????????????????????????????????????????? | | ?????????????????????????????????????????????????? | | ?? ????????????? #????????????????????????????? | | ?? ????????????? #????????????????????????????? | | ?? ????????????? #???????^ ???????????????? | | ?+ ????????????? #??????# ?? ?????? | | ?# ????????????? #??????# ^ ????? | | ?# #???????????? #??????# ^ ???? | | ?# #???????????? #??????# ^ ????? | | ?# #???????????# #??????# ^^ ????? | | ?# #???????????# +??????# ! ?????? | | ?# #???????????# #??????# ?????? | | ?# #???????????# #??????# #?????? | | ?# #???????????# #??????# u """"" #?????? | | ?# ############# #??##### """"" #?????? | | ## #??# k """"" #?????? | | # = #??# """"" #?????? | | # ############# #??# """"" #?????? | | #! #???????????# #??# """"" #?????? | | + #???????????# #??# """"" ####### | | #= #???????????# #??#!@ o "T" | | # =############# #### %! g | | ## ## a k | | ##*## < = ! ##########"T"### ^ | | ##=## * = #????????#"""#?? """ | | ## ############# !###+####????????#####?? """ | | ## #???????????# ##= * #???????????????? """ | | ## #???????????# ##!" #????????????????? """ | | ### ############# ## T #????????????????? """ | | #?# ## " #????????????????? | | #?# ## #????????????????^ | | #?# ## | #?????????????????? """ | | ####+####### ######### !#?????????????????? """ | | ## # #???????# #?????????????????? "?? | | ## = # #???????# #######???????????^ "?? | | ## * # ############## ###+####### ?? ??? | | ## += ????? | | ## * # T ????? | | ## # ????? | | ## # ############# #####+???????????? | | ## # #???????????## ##????????????????? | | #####+###### ####?????????# ##????????????????? | | #???# #????# # ??????????# T#????????????????? | | #???# #????# + #??????????# ##????????????????? | | #???# #????# # #??????????# #?????????????????? | +----------------------------------------------------+ Best States ------------- Heat Dissipation 35 Energy Generation 14 Energy Capacity 250 Matter Stores 273 Matter Capacity 400 Sight Range 16 Terrain Scan Density 10 Evasion (%) 40 Item Schematics ----------------- None Robot Schematics ------------------ None Fabricated ------------ Nothing Repaired ---------- Nothing Alien Tech Used ----------------- None Achievements -------------- None Challenges ------------ None Game ------ Seed DroneEfficiencyMinigun Manual? 0 Play Time 00:10:06 Cumulative 302.1 hours Start 2025.06.15 @ 10:03:10 End 2025.06.15 @ 10:16:34 Sessions 1 Manual Loads 0 Difficulty Rogue Special Mode None Game No. 254 Rogue 242 Adventurer 12 Explorer 0 Win Type - Total 1 Types 1/0/0/0/0/0/0/0/0/0 Lore% 30 Gallery% 44 Achievement% 37 Wizard Run 0 Options --------- Layout 1 ASCII 0 Keyboard 0 Movement Mouse Keybinds 0 Fullscreen 1 Font 32/SmallcapsGlow Map View 77x35 Zoom Use 0% Tactical HUD 1 Map Filters NONE Filters NONE Steam 1 RUN: 39234f2f-f457-49ac-bfdb-42d79a2087fd